[Event "10th Cherry Blossom Classic 2023"]
[Site "Dulles"]
[Date "2023.05.27"]
[Round "3.14"]
[White "Chabris, Christopher"]
[Black "Prabhu, Naveen"]
[Result "1/2-1/2"]
[ECO "C18"]
[WhiteElo "2053"]
[BlackElo "2138"]
[Annotator "TA"]
[PlyCount "109"]
[EventDate "2023.05.24"]
[EventType "swiss"]
[EventCountry "USA"]
[SourceTitle "playchess.com"]
[Source "ChessBase"]
[SourceQuality "1"]
[TimeControl "5400+30"]

{[%evp 13,109,-6,-13,-26,-4,-7,0,0,0,-24,-24,-24,-24,-22,0,0,0,0,0,0,0,0,49,16,14,5,14,22,39,29,106,70,158,149,144,139,137,131,135,62,63,0,68,68,102,124,83,51,85,0,0,0,0,0,0,0,0,0,42,0,93,0,0,-5,0,0,22,0,0,-8,-8,-8,-8,-17,0,0,267,0,0,0,29979,29980,29978,5498,5422,5422,1590,1354,29988,29988,29987,0,0,0,0,0,0,0]} 1. e4 {[%emt 0:00:16]} e6 {[%emt 0:00:16]} 2. d4 {[%emt 0:00:25]} d5 {[%emt 0:00:06]} 3. Nc3 {[%emt 0:00:04]} Bb4 {[%emt 0:00:09]} 4. e5 {[%emt 0:00:17]} c5 {[%emt 0:00:07]} 5. a3 {[%emt 0:00:07]} Bxc3+ {[%emt 0:00:06]} 6. bxc3 {[%emt 0:00:05]} Ne7 {[%emt 0:00:05]} 7. h4 {[%emt 0:00:25]} Qc7 {[%emt 0:00:45]} 8. h5 {[%emt 0:00:35] C18: French: 3 Nc3 Bb4: Main line: 7 h4 and 7 Qg4.} h6 {[%emt 0:00:06]} 9. Rb1 {[%emt 0:00:23]} Nbc6 {[%emt 0:00:42]} 10. Qg4 {[%emt 0:00:57]} Rg8 {[%emt 0:01:03]} 11. Bd3 {[%emt 0:07:06]} c4 {[%emt 0:01:25]} 12. Bh7 {[%emt 0:08:34] [#]} Nxe5 $1 {[%emt 0:00:57]} 13. Qg3 {[%emt 0:20:01][%mdl 64] [#] Pin} Nd3+ $1 {[%emt 0:02:42]} 14. cxd3 {[%emt 0:01:53]} Qxg3 {[%emt 0:00:20]} 15. fxg3 {[%emt 0:00:04]} Rh8 {[%emt 0:00:10] [#]} 16. Be4 $146 {[%emt 0:02:12]} ({Predecessor:} 16. dxc4 Rxh7 17. c5 Nc6 18. Bf4 Na5 19. Nf3 Nc4 20. a4 Kd7 21. Nd2 Nxd2 22. Kxd2 {1-0 Bartel,M (2627)-Baum,J (2420) EU-ch Rapid Katowice 2022 (9)}) 16... dxe4 {[%emt 0:00:35]} 17. dxe4 {[%emt 0:00:18]} f5 {[%emt 0:18:57] Black is weak on the dark squares} (17... b6 $11 {feels stronger.}) 18. Nf3 {[%emt 0:08:09][%cal Bg1f3,Bf3d2,Bd2e4][%mdl 32]} fxe4 {[%emt 0:08:33]} 19. Nd2 {[%emt 0:05:42][%csl LRc4,LRe4]} b6 {[%emt 0:08:29]} 20. Nxe4 {[%emt 0:04:12]} (20. Nxc4 Ba6 21. Nd6+ Kd7 $17) 20... Nd5 {[%emt 0:09:27]} 21. a4 {[%emt 0:06:05]} Bb7 {[%emt 0:11:14]} (21... Kf7 $11 {keeps the balance.}) 22. Ba3 {[%emt 0:02:57]} Kd7 {[%emt 0:09:48]} (22... Bc6 $14) 23. Rf1 {[%emt 0:03:29]} Nf6 {[%emt 0:03:03]} 24. Nxf6+ {[%emt 0:03:59]} gxf6 {[%emt 0:00:02]} 25. Rxf6 {[%emt 0:00:20]} Bxg2 {[%emt 0:01:42] [#]} 26. a5 {[%emt 0:02:21]} Bd5 $14 {[%emt 0:10:05]} 27. a6 {[%emt 0:09:03]} (27. axb6 axb6 28. Bc1 Kc6 $11) (27. Kf2 $14) 27... Kc6 {[%emt 0:03:07]} ({Black should play} 27... Rhg8 $11) 28. Kf2 {[%emt 0:00:41]} Rh7 {[%emt 0:01:37]} 29. Bf8 {[%emt 0:03:30]} Rh8 {[%emt 0:01:42]} 30. Bxh6 {[%emt 0:01:43] White has more active pieces.} (30. Rxh6 $2 Raxf8+ 31. Ke1 Rxh6 $19) 30... Rag8 {[%emt 0:00:04]} 31. Bf4 {[%emt 0:01:39]} (31. Rg1 $1 $16) 31... Rxh5 $11 {[%emt 0:03:14]} 32. Rf7 {[%emt 0:01:12][%csl Gf4][%cal Rf7c7]} b5 {[%emt 0:00:16]} 33. Rb7 {[%emt 0:02:00]} Be4 {[%emt 0:01:00]} 34. Re1 {[%emt 0:01:44]} Rh2+ {[%emt 0:00:16]} 35. Ke3 {[%emt 0:00:14]} Bf5 {[%emt 0:01:52]} (35... Bd5 $5 {[%cal Rh2c2]}) 36. Rxa7 {[%emt 0:01:14]} Ra2 {[%emt 0:00:27]} (36... Kb6 37. Rf7 $16) (36... Rc2 $1 $11) 37. Rh1 {[%emt 0:02:42]} (37. Rc7+ $1 $16 Kb6 38. Rf7) 37... Bg4 {[%emt 0:00:48][%csl Gg4][%cal Ra2e2]} 38. Re1 {[%emt 0:01:46] Wards off Re2+} Kb6 {[%emt 0:01:55]} (38... Rc2 {looks sharper.} 39. d5+ Kxd5 40. Rd7+ Kc6) 39. Rd7 {[%emt 0:00:47]} Kxa6 {[%emt 0:00:18]} 40. Bd6 {[%emt 0:00:35] Bc5 would be deadly.} Kb6 {[%emt 0:00:46] Strongly threatening ...Kc6.} 41. Bc5+ {[%emt 0:00:27]} Kc6 {[%emt 0:00:04]} 42. Rd6+ {[%emt 0:00:33]} Kc7 {[%emt 0:00:10]} 43. Rb6 {[%emt 0:00:35]} Rc2 {[%emt 0:02:02]} (43... Bh3 $5 {[%cal Rg8g3]}) 44. Ra1 {[%emt 0:00:31]} Rxc3+ $2 {[%emt 0:00:45][%mdl 8192] [#]} (44... Re2+ $11 45. Kf4 Rf2+ 46. Ke5 Re2+ 47. Kf6 Rf2+ 48. Ke5 (48. Ke7 $2 Rg7+ 49. Ke8 Bh5#) 48... Re2+ 49. Kf6 Rf2+ 50. Ke5 (50. Ke7 $2 Rg7+ 51. Ke8 Bh5#)) 45. Kd2 $2 {[%emt 0:00:10]} (45. Kf4 $1 $18 {White threatens Ra7+ and mate.} Rf3+ 46. Ke4 Rxg3 47. Ra7+ (47. Rxb5 Bf3+ 48. Ke5 R3g5+ 49. Kf6 Kc8 $17) 47... Kc8 48. Rc6+ (48. Rxb5 Bf3+ 49. Kf4 Bg2 $17) 48... Kb8 49. Rf7) 45... Rd3+ {[%emt 0:00:20]} (45... Rxg3 {leads to mate.} 46. Ra7+ (46. Rxb5 $2 Rh8 $19) 46... Kc8 47. Bd6 (47. Rxb5 $2 c3+ 48. Kc2 Bf5+ 49. Kb3 c2+ 50. Ka4 Rd8 $19) 47... c3+ 48. Kc2 Rg2+ 49. Kxc3 b4+ 50. Rxb4 (50. Kxb4 Rb2+ 51. Kc5 Rc2+ 52. Kb4 Rb2+ 53. Kc5 Rc2+ 54. Kb4 Rb2+ $11) (50. Kxb4 Rb2+ 51. Kc5 Rc2+ 52. Kb4 Rb2+ 53. Kc5 Rc2+ 54. Kb4 Rb2+ $11)) 46. Kc2 {[%emt 0:00:06] White wants to mate with Ra7+.} Rb8 $2 {[%emt 0:01:14][%mdl 8192]} (46... Rxg3 $2 47. Ra7+ (47. Rxb5 $2 {loses.} Bf5+ 48. Kb2 c3+ 49. Kb3 c2+ 50. Kb4 Rd3 $19) 47... Kc8 48. Bd6 (48. Rxb5 Bf5+ 49. Kb2 c3+ 50. Ka2 Rg1 $17) 48... Bf5+ 49. Kd2 c3+ 50. Ke2 Bd3+ 51. Kf2 Rg2+ 52. Kf3 Be2+ 53. Ke3 R8g3+ 54. Bxg3 Rxg3+ 55. Kxe2 $18) (46... Bf5 $11 47. Ra7+ Kc8 48. Ra8+ Kd7 49. Ra7+ Kc8 50. Ra8+ Kd7 51. Ra7+ Kc8) 47. Ra7+ {[%emt 0:00:14]} Kc8 {[%emt 0:00:00]} 48. Rc6+ {[%emt 0:00:20]} Kd8 {[%emt 0:00:01]} 49. Rd6+ {[%emt 0:00:20]} Ke8 {[%emt 0:01:26]} 50. Rdd7 {[%emt 0:00:29] Intending Rh7 and mate.} b4 {[%emt 0:00:29]} 51. Re7+ {[%emt 0:00:51]} Kd8 {[%emt 0:00:00] [#]} 52. Rad7+ $2 {[%emt 0:01:11]} (52. Bxb4 $1 {mates} Bd1+ 53. Kc1 Rxb4 54. Rh7 Rc3+ 55. Kxd1 Rb1+ 56. Kd2 Rd3+ 57. Kc2) 52... Kc8 {[%emt 0:00:01] The position is equal.} 53. Rc7+ {[%emt 0:00:30]} Kd8 {[%emt 0:00:01] aiming for ...Bd1+.} 54. Rcd7+ {[%emt 0:00:48]} Kc8 {[%emt 0:00:00] Hoping for ...Bd1+.} 55. Rc7+ {[%emt 0:00:29] Weighted Error Value: White=0.32/Black=0.53} 1/2-1/2

[Event "10th Cherry Blossom Classic 2023"]
[Site "Dulles"]
[Date "2023.05.27"]
[Round "3.15"]
[White "Girsh, Daniel"]
[Black "Su, Kevin"]
[Result "1-0"]
[ECO "B48"]
[WhiteElo "2123"]
[BlackElo "2038"]
[Annotator "TA"]
[PlyCount "39"]
[EventDate "2023.05.24"]
[EventType "swiss"]
[EventCountry "USA"]
[SourceTitle "playchess.com"]
[Source "ChessBase"]
[SourceQuality "1"]
[TimeControl "5400+30"]

{[%evp 11,39,25,48,11,25,32,52,94,74,53,53,51,456,463,712,448,425,437,422,0,0,0,366,350,252,129,553,346,29992,29993]} 1. e4 {[%emt 0:00:19]} c5 {[%emt 0:00:06]} 2. Nf3 {[%emt 0:00:07]} e6 {[%emt 0:00:05]} 3. d4 {[%emt 0:00:12]} cxd4 {[%emt 0:00:05]} 4. Nxd4 {[%emt 0:00:05]} Nc6 {[%emt 0:00:06]} 5. Nc3 {[%emt 0:00:10]} Qc7 {[%emt 0:00:04]} 6. Be3 {[%emt 0:00:28]} a6 {[%emt 0:00:07]} 7. g4 $1 {[%emt 0:00:39][%cal Bg2g4,Bg4g5,Bg5f6][%mdl 4] 7.g4 is a critical line. B48: Sicilian: Taimanov: 5 Nc3 Qc7 6 Be3 a6 without Be2.} Bb4 {[%emt 0:04:06]} 8. Nxc6 {[%emt 0:00:30]} Qxc6 {[%emt 0:02:39]} 9. Qd4 {[%emt 0:00:24][%csl LRb4,LRg7] White is slightly better.} Bxc3+ {[%emt 0:00:13]} 10. bxc3 {[%emt 0:00:20]} Nf6 {[%emt 0:00:13] [#] Black is weak on the dark squares} 11. g5 $146 {[%emt 0:01:50]} ({Predecessor:} 11. f3 d6 12. O-O-O O-O 13. c4 Rd8 14. Qb6 Rd7 15. Be2 a5 16. Rd2 Ra6 17. Qxc6 Rxc6 {1-0 Topalov,V (2730)-Javakhishvili,L (2479) Salamanca Masters 4th 2021 (1)}) 11... Qxe4 $2 {[%emt 0:08:32][%mdl 8192]} ({Black should try} 11... Nxe4 $14 12. Qxg7 Rf8) 12. gxf6 $18 {[%emt 0:00:28]} Qxh1 {[%emt 0:00:53]} (12... Qxd4 $142 13. Bxd4 g6) 13. Qd6 {[%emt 0:05:02][%csl Gf6][%cal Rd6e7]} gxf6 {[%emt 0:00:08] Strongly threatening ...Qc6.} 14. Bc5 {[%emt 0:00:20][%csl Gc5][%cal Rd6e7]} Qe4+ {[%emt 0:00:06]} 15. Be2 {[%emt 0:00:05][%csl Gc5][%cal Rd6e7]} Qh1+ {[%emt 0:00:05]} (15... Qxc2 $2 16. Qe7#) 16. Bf1 {[%emt 0:00:23][%csl Gc5][%cal Rd6e7,Be2f1,Bf1d3,Bd3e4][%mdl 32] This pair of bishops is nice.} Qe4+ {[%emt 0:00:04] [#]} 17. Kd2 $1 {[%emt 0:00:12][%csl Gc5][%cal Rd6e7]} ({Stronger than} 17. Be2 Qh1+ 18. Bf1 $11) 17... Kd8 {[%emt 0:01:03] [#]} (17... Qd5+ 18. Qxd5 Kd8 19. Qd4 d5 20. Qxf6+ Kc7 21. Qf4+ Kd8 22. Qxf7) 18. Bd4 $1 {[%emt 0:24:52]} Qf5 {[%emt 0:04:18][%mdl 8192]} (18... Qh4 $16 {is tougher.}) 19. Bd3 {[%emt 0:01:11]} Qf3 {[%emt 0:02:12] [#]} (19... Qg5+ $18 20. f4 Qh6) 20. Be4 $1 {[%emt 0:00:37][%mdl 576] Deflection.   Weighted Error Value: White=0.87/Black=1.30} 1-0

[Event "10th Cherry Blossom Classic 2023"]
[Site "Dulles"]
[Date "2023.05.27"]
[Round "3.16"]
[White "Kanli, Alperen"]
[Black "Ismayilova, Khanim"]
[Result "1/2-1/2"]
[ECO "D11"]
[WhiteElo "2111"]
[BlackElo "1562"]
[Annotator "TA"]
[PlyCount "86"]
[EventDate "2023.05.24"]
[EventType "swiss"]
[EventCountry "USA"]
[SourceTitle "playchess.com"]
[Source "ChessBase"]
[SourceQuality "1"]
[TimeControl "5400+30"]

{[%evp 9,86,-30,6,15,17,8,17,14,26,14,24,15,15,15,23,15,35,8,28,0,0,-3,-9,-6,0,0,0,0,0,0,0,-9,0,0,0,0,0,-39,0,0,0,-16,0,0,0,-6,0,0,0,0,0,0,0,0,0,0,0,0,0,0,0,0,0,0,0,0,0,0,0,0,0,0,0,0,0,0,0,0,0]} 1. d4 {[%emt 0:00:28]} d5 {[%emt 0:00:12]} 2. c4 {[%emt 0:00:09]} c6 {[%emt 0:00:34]} 3. Nf3 {[%emt 0:00:20]} Nf6 {[%emt 0:00:07]} 4. g3 {[%emt 0:00:04]} dxc4 {[%emt 0:00:16]} 5. a4 {[%emt 0:00:28]} g6 {[%emt 0:00:28]} 6. Bg2 {[%emt 0:01:38] D11: Slav Defence: 3 Nf3 sidelines and 3...Nf6 4 e3 Bg4.} Bg7 {[%emt 0:01:18][%cal Oc6c5]} 7. Na3 {[%emt 0:01:13]} Be6 {[%emt 0:02:12]} 8. Ng5 {[%emt 0:01:34] White wants to play Nxe6.} Bd5 {[%emt 0:02:34]} 9. e4 {[%emt 0:00:28]} h6 $1 {[%emt 0:00:06]} 10. exd5 {[%emt 0:00:26]} hxg5 {[%emt 0:00:07]} 11. dxc6 {[%emt 0:02:35]} Nxc6 {[%emt 0:01:47]} 12. Nxc4 {[%emt 0:00:11]} O-O {[%emt 0:12:05]} 13. Bxg5 {[%emt 0:00:47]} (13. d5 $5 {[%cal Rd5c6]} Na5 14. Na3 $11) 13... Qxd4 {[%emt 0:05:32]} 14. Qxd4 {[%emt 0:00:10]} (14. Rc1 {is more complex.} Rac8 15. O-O Rfd8 16. Be3) 14... Nxd4 {[%emt 0:00:04]} 15. O-O {[%emt 0:00:16][%cal Of1d1]} ({But not} 15. Bxb7 Rab8 16. Na5 (16. Rd1 $2 Nh7 $19) 16... Nc2+ 17. Ke2 Nxa1 18. Rxa1 Rfd8 $15) 15... Rac8 {[%emt 0:01:39] [#]} 16. Ne3 $146 {[%emt 0:00:48]} ({Predecessor:} 16. Na3 Nc2 17. Rac1 Nxa3 18. bxa3 b6 19. Bb7 Rxc1 20. Rxc1 Rd8 21. Rc7 Nd5 22. Bxd5 Rxd5 23. Bxe7 {½-½ Ovchinnikov,V (2329)-Belozerov,A (2528) Wch Rapid St Petersburg 2018 (12)}) 16... Ne6 {[%emt 0:09:53]} 17. Bxf6 {[%emt 0:04:15]} Bxf6 {[%emt 0:00:24]} 18. Nd5 {[%emt 0:00:02]} Kg7 {[%emt 0:07:11]} ({Resist} 18... Bxb2 19. Rab1 (19. Nxe7+ Kg7 $16) 19... Ba3 20. Rxb7 $16) 19. Nxf6 {[%emt 0:00:11]} Kxf6 {[%emt 0:00:05]} 20. Rfd1 {[%emt 0:03:34]} Rc2 {[%emt 0:11:43]} 21. b4 {[%emt 0:00:33]} Rb2 {[%emt 0:05:03]} 22. b5 {[%emt 0:01:38]} Nc5 {[%emt 0:02:29]} 23. Rd4 {[%emt 0:02:12]} b6 {[%emt 0:03:18]} 24. Bc6 {[%emt 0:00:23] The position is equal.} Kg7 {[%emt 0:03:32]} 25. Ra3 {[%emt 0:03:36]} Rc8 {[%emt 0:07:14]} 26. a5 $1 {[%emt 0:01:00]} bxa5 {[%emt 0:02:21]} 27. Rd5 {[%emt 0:01:07]} Rc2 {[%emt 0:01:30]} 28. Rxa5 {[%emt 0:01:59]} a6 {[%emt 0:03:14]} 29. bxa6 {[%emt 0:02:19]} Nxa6 {[%emt 0:00:39]} 30. Bb7 {[%emt 0:00:40][%cal Ob7c8]} Nb4 {[%emt 0:01:39]} 31. Bxc8 {[%emt 0:05:06]} Nxd5 {[%emt 0:00:14]} 32. Rxd5 {[%emt 0:00:06] [#] aiming for Ba6.} Rxc8 $11 {[%emt 0:00:04][%mdl 4096] Endgame KR-KR} 33. Kg2 {[%emt 0:00:01]} Rc3 {[%emt 0:00:28]} 34. Rd7 {[%emt 0:00:02]} e6 {[%emt 0:00:07]} 35. g4 {[%emt 0:00:08]} g5 {[%emt 0:01:01]} 36. Ra7 {[%emt 0:00:11]} Kg6 {[%emt 0:00:12]} 37. Ra6 {[%emt 0:00:06]} Rb3 {[%emt 0:00:17]} 38. h3 {[%emt 0:00:27]} Rc3 {[%emt 0:00:10]} 39. Ra8 {[%emt 0:00:11]} Kg7 {[%emt 0:00:55]} 40. f3 {[%emt 0:00:20]} Rb3 {[%emt 0:00:19]} 41. Ra5 {[%emt 0:00:28]} Kg6 {[%emt 0:00:15]} 42. Ra8 {[%emt 0:00:12]} Kg7 {[%emt 0:00:05]} 43. Kg3 {[%emt 0:00:18]} Rc3 {[%emt 0:00:11] A rather calm draw.   Weighted Error Value: White=0.05 (flawless) /Black=0.05 (flawless)} 1/2-1/2

[Event "10th Cherry Blossom Classic 2023"]
[Site "Dulles"]
[Date "2023.05.27"]
[Round "3.17"]
[White "Baim, Elvin"]
[Black "Brady, Tyson"]
[Result "0-1"]
[ECO "A88"]
[WhiteElo "1728"]
[BlackElo "2092"]
[Annotator "TA"]
[PlyCount "100"]
[EventDate "2023.05.24"]
[EventType "swiss"]
[EventCountry "USA"]
[SourceTitle "playchess.com"]
[Source "ChessBase"]
[SourceQuality "1"]
[TimeControl "5400+30"]

{[%evp 15,100,25,31,12,43,23,41,14,93,57,131,83,77,80,75,52,51,44,34,0,0,-8,0,-21,0,-14,14,-15,4,0,0,0,4,-25,-25,-174,-148,-276,-110,-108,-32,-27,-27,-64,-32,-125,-66,-67,-54,-52,-45,-45,-45,-44,-31,-42,-8,-18,-45,-195,-195,-205,-197,-290,-289,-333,-298,-310,-291,-337,-286,-295,-297,-480,-480,-724,-512,-1135,-1089,-5213,-4245,-29959,-29960,-7212,-6546,-2330,-2185]} 1. d4 {[%emt 0:00:04]} f5 {[%emt 0:00:05]} 2. c4 {[%emt 0:01:07]} Nf6 {[%emt 0:00:05]} 3. Nc3 {[%emt 0:01:13]} g6 {[%emt 0:00:18]} 4. Nf3 {[%emt 0:05:03]} Bg7 {[%emt 0:00:07]} 5. g3 {[%emt 0:12:54]} O-O {[%emt 0:00:07]} 6. Bg2 {[%emt 0:02:06]} d6 {[%emt 0:00:09]} 7. O-O {[%emt 0:01:15]} c6 {[%emt 0:00:02]} 8. Re1 {[%emt 0:17:16]} Ne4 {[%emt 0:02:46]} 9. e3 {[%emt 0:18:55] A88: Dutch Defence: Leningrad System: 5 Nf3 0-0 6 0-0 d6 7 Nc3 c6.} Nxc3 {[%emt 0:09:41]} 10. bxc3 {[%emt 0:00:32] [#]} Nd7 $146 {[%emt 0:06:47]} ({Predecessor:} 10... e5 11. a4 e4 12. Nd2 Nd7 13. Ba3 Nf6 14. Qb3 Re8 15. Reb1 Rb8 16. Rb2 h5 {½-½ Toth,J (2183)-Havasi,J (1673) HUN-chT2 Szechenyi 1718 2017 (9.6)}) 11. Qb3 {[%emt 0:02:51] White is slightly better.} h6 {[%emt 0:10:22]} (11... e5 $11) 12. c5+ {[%emt 0:05:15]} Kh7 {[%emt 0:00:04]} (12... d5 $14) 13. cxd6 {[%emt 0:00:29]} ({White should try} 13. e4 $1) 13... exd6 $16 {[%emt 0:00:04]} 14. e4 {[%emt 0:07:01]} Nb6 {[%emt 0:02:59]} 15. Ba3 {[%emt 0:01:32] Hoping for e5.} (15. exf5 {seems wilder.} Bxf5 16. Nh4 Bd3 17. Re3) 15... fxe4 {[%emt 0:04:09]} 16. Rxe4 {[%emt 0:00:00]} (16. Nd2 $5 {[%cal Rd2e4]}) 16... Bf5 {[%emt 0:00:28]} 17. Ree1 {[%emt 0:00:51]} (17. Re3 $5 {[%cal Rf3h4]}) 17... Qf6 $1 {[%emt 0:02:41]} 18. Nh4 {[%emt 0:07:46]} Bd3 {[%emt 0:00:47]} 19. f4 {[%emt 0:01:42]} Rfe8 {[%emt 0:02:51] Repels Re6} (19... Rae8 {is more complex.} 20. Bf3 Bc4 21. Qc2 Bd5) 20. Nf3 {[%emt 0:04:26]} (20. Bf3 {with more complications.} g5 21. Rxe8 Rxe8 22. Qd1) 20... Kh8 {[%emt 0:10:05]} 21. Rad1 {[%emt 0:02:00]} (21. Nd2 {feels hotter.} g5 22. Be4 Bb5 23. fxg5 Qxg5 24. Qc2) 21... Be2 {[%emt 0:00:45]} 22. Rb1 {[%emt 0:01:24][%cal Of3e5] And now Ne5! would win.} Bxf3 {[%emt 0:14:11]} 23. Bxf3 {[%emt 0:00:03]} d5 {[%emt 0:02:12]} 24. Bc5 {[%emt 0:04:55]} Nc4 {[%emt 0:05:21]} 25. Rxe8+ {[%emt 0:01:17]} (25. Qxb7 $11 Nd2 26. Kg2 (26. Rxe8+ Rxe8 27. Bg4 Nxb1 $17)) 25... Rxe8 $19 {[%emt 0:00:07]} 26. Rd1 {[%emt 0:00:42] Prevents Nd2} (26. Bxa7 $2 {loses.} Nd2 27. Qd1 Qf5 28. Qxd2 (28. Rxb7 $2 {perishes.} Re1+ {[%mdl 64] Decoy} 29. Qxe1 Nxf3+ 30. Kf2 Nxe1 $19) 28... Qxb1+ 29. Kg2 Ra8 $19) (26. Qxb7 $17 Qe6 27. Kg2 (27. Bxa7 $2 Nd2 $19)) 26... b6 $2 {[%emt 0:01:02]} (26... Qe6 $19 {has better winning chances.} 27. Qxb7 Qe3+ 28. Kg2 Qxc3) 27. Ba3 $17 {[%emt 0:00:01]} Qf5 {[%emt 0:05:25]} (27... Re3 $1 $17 {[%cal Re3f3]} 28. Bg2 Qe6) 28. Bc1 $1 $15 {[%emt 0:00:29]} a5 {[%emt 0:00:01]} 29. g4 {[%emt 0:00:24]} Qe6 {[%emt 0:00:58] Black is much more active.} 30. Kf2 {[%emt 0:00:34]} (30. Rf1 $15) 30... Bf6 {[%emt 0:00:20]} ({Better is} 30... Ne3 $17 31. Bxe3 Qxe3+ 32. Kg2 Qxf4) 31. Qc2 {[%emt 0:01:12]} Bh4+ {[%emt 0:08:32]} (31... Be7 {is interesting.} 32. Rf1 Ba3 33. f5 Qf6) 32. Kg2 {[%emt 0:00:01]} Nd6 {[%emt 0:06:44]} 33. Rd2 {[%emt 0:00:53]} Qf7 {[%emt 0:02:46]} 34. Re2 {[%emt 0:00:20]} Kg7 {[%emt 0:00:14]} 35. Qd3 {[%emt 0:00:42]} Nc4 {[%emt 0:02:11]} 36. Rxe8 {[%emt 0:00:33]} (36. f5 {with more complications.} Re7 37. Bf4 gxf5 38. gxf5 Qf6 39. Rxe7+ Qxe7 40. Bh5) 36... Qxe8 {[%emt 0:00:02]} 37. Qe2 {[%emt 0:00:01] [#]} ({White should play} 37. Be2 $15) 37... Qxe2+ $1 $19 {[%emt 0:00:24]} 38. Bxe2 {[%emt 0:00:02]} Be1 {[%emt 0:00:05]} 39. Bxc4 {[%emt 0:00:16]} (39. Kf3 $142) 39... dxc4 {[%emt 0:00:03][%mdl 4096] Endgame KB-KB} 40. Bb2 {[%emt 0:00:13]} b5 {[%emt 0:00:15]} 41. Kf3 {[%emt 0:00:02] [#]} Bd2 $1 {[%emt 0:01:20]} 42. a3 {[%emt 0:00:42]} Kf6 {[%emt 0:00:18] Strongly threatening ...b4.} 43. h3 {[%emt 0:00:29]} Ke6 {[%emt 0:01:42]} 44. h4 $2 {[%emt 0:01:44]} (44. Ke4 {was forced.}) 44... Be1 {[%emt 0:00:56]} 45. Ke2 {[%emt 0:01:02]} (45. h5 $142 gxh5 46. Ke2) 45... Bxh4 {[%emt 0:00:06]} 46. Bc1 {[%emt 0:00:05]} (46. Kf3 $142 Kd5 47. Ba1) 46... h5 {[%emt 0:00:45]} 47. gxh5 {[%emt 0:00:13]} gxh5 {[%emt 0:00:06][%cal Bg6h5,Bh5h4][%mdl 32]} 48. Bd2 {[%emt 0:00:06]} Be7 {[%emt 0:00:07]} 49. Bc1 {[%emt 0:00:06]} Kf5 {[%emt 0:00:02]} 50. Kf3 {[%emt 0:00:04]} h4 {[%emt 0:03:53] Weighted Error Value: White=0.70/Black=0.19 (very precise)} 0-1